lending/lending_fUSD_20250913
["ID","MTS","AMOUNT","RATE_DAILY","PERIOD"]
[385354389,1757790746630,-400.0,0.00029315,2]
[385354390,1757790746639,-400.0,0.00029315,2]
[385354391,1757790746648,-400.0,0.00029315,2]
[385354392,1757790746658,-1107.3,0.00029315,2]
[385354393,1757790746668,-1360.89,0.00029315,2]
[385354394,1757790746677,-400.0,0.00029315,2]
[385354395,1757790746686,-400.0,0.00029315,2]
[385354396,1757790746695,-438.49,0.00029315,2]
[385354397,1757790746705,-511.89,0.00029315,2]
[385354398,1757790746713,-400.0,0.00029315,2]
[385354399,1757790746723,-875.02,0.00029315,2]
[385354400,1757790746733,-441.06,0.00029315,2]
[385354401,1757790746742,-540.34,0.00029315,2]
[385354402,1757790746752,-432.57,0.00029315,2]
[385354403,1757790746761,-605.1,0.00029315,2]
[385354404,1757790746771,-208.27464357,0.00029315,2]
[385354405,1757790746780,-400.0,0.00029315,2]
[385354406,1757790746789,-259.14,0.00029315,2]
[385354407,1757790746798,-979.03,0.00029315,2]
[385354408,1757790746808,-403.11471203,0.00029315,2]
[385354409,1757790746817,-639.66,0.00029315,2]
[385354410,1757790746827,-400.0,0.00029315,2]
[385354411,1757790746836,-400.0,0.00029315,2]
[385354412,1757790746845,-743.92,0.00029315,2]
[385354413,1757790746854,-400.0,0.00029315,2]
[385354414,1757790746864,-549.77,0.00029315,2]
[385354415,1757790746873,-400.0,0.00029315,2]
[385354416,1757790746882,-220.01,0.00029315,2]
[385354417,1757790746891,-400.0,0.00029315,2]
[385354418,1757790746900,-867.52,0.00029315,2]
[385354419,1757790746909,-379.93840038,0.00029315,2]
[385354420,1757790746918,-757.51,0.00029315,2]
[385354421,1757790746927,-400.0,0.00029315,2]
[385354422,1757790746937,-1369.33,0.00029315,2]
[385354423,1757790746947,-976.5,0.00029315,2]
[385354424,1757790746956,-714.21,0.00029315,2]
[385354425,1757790746965,-1200.51,0.00029315,2]
[385354426,1757790746975,-429.54,0.00029315,2]
[385354427,1757790746984,-931.9,0.00029315,2]
[385354428,1757790746993,-767.06,0.00029315,2]
[385354429,1757790747003,-522.36,0.00029315,2]
[385354430,1757790747012,-464.29,0.00029315,2]
[385354431,1757790747022,-400.0,0.00029315,2]
[385354432,1757790747031,-1050.24,0.00029315,2]
[385354433,1757790747040,-400.0,0.00029315,2]
[385354434,1757790747049,-712.0,0.00029315,2]
[385354435,1757790747058,-770.1,0.00029315,2]
[385354436,1757790747067,-1340.61,0.00029315,2]
[385354437,1757790747077,-503.78,0.00029315,2]
[385354438,1757790747087,-744.56,0.00029315,2]
[385354439,1757790747097,-933.78,0.00029315,2]
[385354440,1757790747106,-400.0,0.00029315,2]
[385354441,1757790747116,-917.05,0.00029315,2]
[385354442,1757790747124,-601.03,0.00029315,2]
[385354443,1757790747134,-1166.06,0.00029315,2]
[385354444,1757790747143,-408.67,0.00029315,2]
[385354445,1757790747153,-400.0,0.00029315,2]
[385354446,1757790747163,-744.95,0.00029315,2]
[385354447,1757790747172,-962.63,0.00029315,2]
[385354448,1757790747182,-944.97,0.00029315,2]
[385354449,1757790747191,-697.23,0.00029315,2]
[385354450,1757790747200,-1128.5,0.00029315,2]
[385354451,1757790747209,-245.66,0.00029315,2]
[385354452,1757790747218,-400.0,0.00029315,2]
[385354453,1757790747227,-407.20812347,0.00029315,2]
[385354454,1757790747237,-1287.15,0.00029315,2]
[385354455,1757790747246,-400.0,0.00029315,2]
[385354456,1757790747255,-1140.31,0.00029315,2]
[385354457,1757790747264,-160.06923322,0.00029315,2]
[385354458,1757790747274,-400.0,0.00029315,2]
[385354459,1757790747283,-1121.16,0.00029315,2]
[385354460,1757790747293,-883.84,0.00029315,2]
[385354461,1757790747302,-400.0,0.00029315,2]
[385354462,1757790747312,-400.0,0.00029315,2]
[385354463,1757790747321,-400.0,0.00029315,2]
[385354464,1757790747330,-400.0,0.00029315,2]
[385354465,1757790747339,-513.88,0.00029315,2]
[385354466,1757790747349,-766.79,0.00029315,2]
[385354467,1757790747358,-836.28,0.00029315,2]
[385354468,1757790747367,-400.0,0.00029315,2]
[385354469,1757790747377,-1062.97,0.00029315,2]
[385354470,1757790747386,-400.0,0.00029315,2]
[385354471,1757790747395,-701.46,0.00029315,2]
[385354472,1757790747404,-400.0,0.00029315,2]
[385354473,1757790747413,-400.0,0.00029315,2]
[385354474,1757790747422,-1010.43,0.00029315,2]
[385354475,1757790747431,-400.0,0.00029315,2]
[385354476,1757790747441,-400.0,0.00029315,2]
[385354477,1757790747450,-618.9,0.00029315,2]
[385354478,1757790747459,-740.73,0.00029315,2]
[385354479,1757790747468,-400.0,0.00029315,2]
[385354480,1757790747482,-617.0,0.00029315,2]
[385354481,1757790747492,-400.0,0.00029315,2]
[385354482,1757790747501,-955.87,0.00029315,2]
[385354483,1757790747510,-400.0,0.00029315,2]
[385354484,1757790747520,-1394.15,0.00029315,2]
[385354485,1757790747529,-645.46,0.00029315,2]
[385354486,1757790747539,-173.69338398,0.00029315,2]
[385354487,1757790747548,-475.16,0.00029315,2]
[385354488,1757790747558,-400.0,0.00029315,2]
[385354489,1757790747567,-432.45103763,0.00029315,2]
[385354490,1757790747576,-400.0,0.00029315,2]
[385354491,1757790747585,-400.0,0.00029315,2]
[385354492,1757790747594,-1201.25,0.00029315,2]
[385354493,1757790747604,-1420.48,0.00029315,2]
[385354494,1757790747613,-436.7,0.00029315,2]
[385354495,1757790747623,-400.0,0.00029315,2]
[385354496,1757790747632,-886.97,0.00029315,2]
[385354497,1757790747643,-400.0,0.00029315,2]
[385354498,1757790747652,-695.44,0.00029315,2]
[385354499,1757790747661,-869.21,0.00029315,2]
[385354500,1757790747671,-1459.76,0.00029315,2]
[385354501,1757790747679,-563.58,0.00029315,2]
[385354502,1757790747688,-400.0,0.00029315,2]
[385354503,1757790747698,-565.26,0.00029315,2]
[385354504,1757790747706,-400.0,0.00029315,2]
[385354505,1757790747715,-1134.89,0.00029315,2]
[385354506,1757790747724,-404.56,0.00029315,2]
[385354507,1757790747734,-734.93,0.00029315,2]
[385354508,1757790747744,-1149.23,0.00029315,2]
[385354509,1757790747753,-400.0,0.00029315,2]
[385354510,1757790747763,-1190.66,0.00029315,2]
[385354511,1757790747772,-656.39,0.00029315,2]
[385354512,1757790747781,-1130.2,0.00029315,2]
[385354513,1757790747790,-400.0,0.00029315,2]
[385354514,1757790747799,-400.0,0.00029315,2]
[385354515,1757790747809,-400.0,0.00029315,2]
[385354516,1757790747818,-409.88458535,0.00029315,2]
[385354517,1757790747827,-400.0,0.00029315,2]
[385354518,1757790747837,-181.33530555,0.00029315,2]
[385354519,1757790747846,-914.37,0.00029315,2]
[385354520,1757790747855,-869.45,0.00029315,2]
[385354521,1757790747864,-400.0,0.00029315,2]
[385354522,1757790747874,-459.11,0.00029315,2]
[385354523,1757790747883,-1022.06,0.00029315,2]
[385354524,1757790747892,-400.0,0.00029315,2]
[385354525,1757790747901,-400.0,0.00029315,2]
[385354526,1757790747910,-516.71,0.00029315,2]
[385354527,1757790747920,-400.0,0.00029315,2]
[385354528,1757790747929,-400.0,0.00029315,2]
[385354529,1757790747938,-400.0,0.00029315,2]
[385354530,1757790747947,-1379.73,0.00029315,2]
[385354531,1757790747956,-899.94,0.00029315,2]
[385354532,1757790747966,-400.0,0.00029315,2]
[385354533,1757790747975,-866.46,0.00029315,2]
[385354534,1757790747984,-400.0,0.00029315,2]
[385354535,1757790747993,-556.4,0.00029315,2]
[385354536,1757790748002,-1195.99,0.00029315,2]
[385354537,1757790748012,-518.54,0.00029315,2]
[385354538,1757790748021,-1740.08,0.00029315,2]
[385354539,1757790748030,-1006.76,0.00029315,2]
[385354540,1757790748039,-400.0,0.00029315,2]
[385354541,1757790748049,-400.0,0.00029315,2]
[385354542,1757790748058,-400.0,0.00029315,2]
[385354543,1757790748067,-668.89,0.00029315,2]
[385354544,1757790748076,-400.0,0.00029315,2]
[385354545,1757790748086,-529.54,0.00029315,2]
[385354546,1757790748095,-927.44,0.00029315,2]
[385354547,1757790748103,-662.77,0.00029315,2]
[385354548,1757790748112,-644.35,0.00029315,2]
[385354549,1757790748121,-405.29813255,0.00029315,2]
[385354550,1757790748131,-400.0,0.00029315,2]
[385354551,1757790748140,-400.0,0.00029315,2]
[385354552,1757790748149,-586.65,0.00029315,2]
[385354553,1757790748159,-411.45302658,0.00029315,2]
[385354554,1757790748168,-744.19,0.00029315,2]
[385354555,1757790748177,-770.78,0.00029315,2]
[385354556,1757790748186,-899.11,0.00029315,2]
[385354557,1757790748195,-714.15,0.00029315,2]
[385354558,1757790748204,-453.23,0.00029315,2]
[385354559,1757790748214,-1002.56,0.00029315,2]
[385354560,1757790748223,-400.0,0.00029315,2]
[385354561,1757790748232,-499.3126683,0.00029315,2]
[385354562,1757790748242,-809.12,0.00029315,2]
[385354563,1757790748251,-400.0,0.00029315,2]
[385354564,1757790748260,-400.0,0.00029315,2]
[385354565,1757790748269,-413.5413975,0.00029315,2]
[385354566,1757790748278,-400.0,0.00029315,2]
[385354567,1757790748287,-400.0,0.00029315,2]
[385354568,1757790748296,-400.0,0.00029315,2]
[385354569,1757790748306,-864.64,0.00029315,2]
[385354570,1757790748316,-400.0,0.00029315,2]
[385354571,1757790748326,-263.63468735,0.00029315,2]
[385354572,1757790748335,-836.53,0.00029315,2]
[385354573,1757790748344,-400.0,0.00029315,2]
[385354574,1757790748354,-400.0,0.00029315,2]
[385354575,1757790748363,-400.0,0.00029315,2]
[385354576,1757790748373,-400.0,0.00029315,2]
[385354577,1757790748382,-400.0,0.00029315,2]
[385354578,1757790748392,-759.84,0.00029315,2]
[385354579,1757790748401,-800.39,0.00029315,2]
[385354580,1757790748410,-400.0,0.00029315,2]
[385354581,1757790748420,-438.06,0.00029315,2]
[385354582,1757790748430,-890.46,0.00029315,2]
[385354583,1757790748439,-1067.29,0.00029315,2]
[385354584,1757790748449,-483.11,0.00029315,2]
[385354585,1757790748460,-400.0,0.00029315,2]
[385354586,1757790748472,-2863.78,0.00029315,2]
[385354587,1757790748483,-621.88,0.00029315,2]
[385354588,1757790748492,-440.32,0.00029315,2]
[385354589,1757790748502,-400.0,0.00029315,2]
[385354590,1757790748511,-1123.98,0.00029315,2]
[385354591,1757790748520,-757.94,0.00029315,2]
[385354592,1757790748529,-400.0,0.00029315,2]
[385354593,1757790748538,-557.63,0.00029315,2]
[385354594,1757790748548,-861.65,0.00029315,2]
[385354595,1757790748557,-803.76,0.00029315,2]
[385354596,1757790748566,-835.94,0.00029315,2]
[385354597,1757790748575,-434.25,0.00029315,2]
[385354598,1757790748584,-400.0,0.00029315,2]
[385354599,1757790748593,-400.0,0.00029315,2]
[385354600,1757790748602,-578.44,0.00029315,2]
[385354601,1757790748611,-550.07,0.00029315,2]
[385354602,1757790748620,-800.87,0.00029315,2]
[385354603,1757790748629,-400.0,0.00029315,2]
[385354604,1757790748639,-541.06,0.00029315,2]
[385354605,1757790748648,-400.0,0.00029315,2]
[385354606,1757790748657,-400.0,0.00029315,2]
[385354607,1757790748667,-652.82,0.00029315,2]
[385354608,1757790748676,-413.50722245,0.00029315,2]
[385354609,1757790748686,-400.0,0.00029315,2]
[385354610,1757790748694,-423.72,0.00029315,2]
[385354611,1757790748704,-400.0,0.00029315,2]
[385354612,1757790748713,-1300.44,0.00029315,2]
[385354613,1757790748722,-400.0,0.00029315,2]
[385354614,1757790748731,-400.0,0.00029315,2]
[385354615,1757790748740,-439.16,0.00029315,2]
[385354616,1757790748750,-411.70159639,0.00029315,2]
[385354617,1757790748759,-400.0,0.00029315,2]
[385354618,1757790748768,-826.3,0.00029315,2]
[385354619,1757790748778,-412.43270166,0.00029315,2]
[385354620,1757790748787,-787.45,0.00029315,2]
[385354621,1757790748796,-535.57,0.00029315,2]
[385354622,1757790748805,-800.47,0.00029315,2]
[385354623,1757790748814,-428.41516996,0.00029315,2]
[385354624,1757790748823,-1253.6,0.00029315,2]
[385354625,1757790748832,-400.0,0.00029315,2]
[385354626,1757790748843,-544.69,0.00029315,2]
[385354627,1757790748852,-400.0,0.00029315,2]
[385354628,1757790748861,-411.01463602,0.00029315,2]
[385354629,1757790748979,-842.01,0.00029315,2]
[385354630,1757790748988,-400.0,0.00029315,2]
[385354631,1757790748998,-944.98,0.00029315,2]
[385354632,1757790749007,-1082.49,0.00029315,2]
[385354633,1757790749017,-556.97,0.00029315,2]
[385354634,1757790749026,-652.8,0.00029315,2]
[385354635,1757790749035,-489.49,0.00029315,2]
[385354636,1757790749044,-400.0,0.00029315,2]
[385354637,1757790749053,-400.0,0.00029315,2]
[385354638,1757790749062,-400.0,0.00029315,2]
[385354639,1757790749071,-400.0,0.00029315,2]
[385354640,1757790749080,-439.06,0.00029315,2]
[385354641,1757790749090,-890.6,0.00029315,2]
[385354642,1757790749099,-589.14,0.00029315,2]
[385354643,1757790749108,-445.05202199,0.00029315,2]
[385354644,1757790749117,-583.29,0.00029315,2]
[385354645,1757790749127,-708.58,0.00029315,2]
[385354646,1757790749136,-400.0,0.00029315,2]
[385354647,1757790749145,-400.0,0.00029315,2]
[385354648,1757790749155,-531.52,0.00029315,2]
[385354649,1757790749164,-400.0,0.00029315,2]
[385354650,1757790749174,-1252.15,0.00029315,2]
[385354651,1757790749184,-400.0,0.00029315,2]
[385354652,1757790749193,-947.61,0.00029315,2]
[385354653,1757790749203,-400.0,0.00029315,2]
[385354654,1757790749212,-400.0,0.00029315,2]
[385354655,1757790749222,-400.0,0.00029315,2]
[385354656,1757790749232,-1050.56,0.00029315,2]
[385354657,1757790749241,-400.0,0.00029315,2]
[385354658,1757790749251,-400.0,0.00029315,2]
[385354659,1757790749260,-400.0,0.00029315,2]
[385354660,1757790749269,-400.0,0.00029315,2]
[385354661,1757790749279,-400.0,0.00029315,2]
[385354662,1757790749289,-872.42,0.00029315,2]
[385354663,1757790749298,-791.71,0.00029315,2]
[385354664,1757790749307,-407.96,0.00029315,2]
[385354665,1757790749317,-400.0,0.00029315,2]
[385354666,1757790749328,-400.0,0.00029315,2]
[385354667,1757790749337,-400.0,0.00029315,2]
[385354668,1757790749347,-983.81,0.00029315,2]
[385354669,1757790749359,-400.0,0.00029315,2]
[385354670,1757790749369,-2593.64,0.00029315,2]
[385354671,1757790749378,-868.8,0.00029315,2]
[385354672,1757790749388,-846.53,0.00029315,2]
[385354673,1757790749398,-730.89,0.00029315,2]
[385354674,1757790749407,-400.0,0.00029315,2]
[385354675,1757790749419,-400.0,0.00029315,2]
[385354676,1757790749430,-785.21,0.00029315,2]
[385354677,1757790749440,-400.0,0.00029315,2]
[385354678,1757790749449,-400.0,0.00029315,2]
[385354679,1757790749459,-400.0,0.00029315,2]
[385354680,1757790749469,-964.92,0.00029315,2]
[385354681,1757790749482,-447.29,0.00029315,2]
[385354682,1757790749492,-400.0,0.00029315,2]
[385354683,1757790749502,-400.0,0.00029315,2]
[385354684,1757790749511,-428.63,0.00029315,2]
[385354685,1757790749523,-759.47,0.00029315,2]
[385354686,1757790749532,-400.0,0.00029315,2]
[385354687,1757790749542,-400.0,0.00029315,2]
[385354688,1757790749554,-400.0,0.00029315,2]
[385354689,1757790749564,-400.0,0.00029315,2]
[385354690,1757790749574,-620.45,0.00029315,2]
[385354691,1757790749584,-862.8,0.00029315,2]
[385354692,1757790749593,-537.7,0.00029315,2]
[385354693,1757790749602,-505.66,0.00029315,2]
[385354694,1757790749612,-400.0,0.00029315,2]
[385354695,1757790749622,-400.0,0.00029315,2]
[385354696,1757790749631,-427.09,0.00029315,2]
[385354697,1757790749641,-400.0,0.00029315,2]
[385354698,1757790749651,-1263.32,0.00029315,2]
[385354699,1757790749660,-400.0,0.00029315,2]
[385354700,1757790749672,-400.0,0.00029315,2]
[385354701,1757790749681,-400.0,0.00029315,2]
[385354702,1757790749691,-786.15,0.00029315,2]
[385354703,1757790749700,-4665.54,0.00029315,2]
[385354704,1757790749709,-400.0,0.00029315,2]
[385354705,1757790749719,-405.43505349,0.00029315,2]
[385354706,1757790749729,-769.42,0.00029315,2]
[385354707,1757790749739,-958.92,0.00029315,2]
[385354708,1757790749748,-1162.64,0.00029315,2]
[385354709,1757790749759,-400.0,0.00029315,2]
[385354710,1757790749768,-400.0,0.00029315,2]
[385354711,1757790749778,-843.12,0.00029315,2]
[385354712,1757790749787,-400.0,0.00029315,2]
[385354713,1757790749796,-830.89,0.00029315,2]
[385354714,1757790749806,-400.0,0.00029315,2]
[385354715,1757790749815,-400.0,0.00029315,2]
[385354716,1757790749825,-400.0,0.00029315,2]
[385354717,1757790749834,-400.0,0.00029315,2]
[385354718,1757790749844,-484.74,0.00029315,2]
[385354719,1757790749854,-871.15,0.00029315,2]
[385354720,1757790749863,-400.0,0.00029315,2]
[385354721,1757790749872,-582.6,0.00029315,2]
[385354722,1757790749882,-1106.22,0.00029315,2]
[385354723,1757790749891,-1197.3,0.00029315,2]
[385354724,1757790749901,-288.69252391,0.00029315,2]
[385354725,1757790749911,-400.0,0.00029315,2]
[385354726,1757790749923,-3316.79,0.00029315,2]
[385354727,1757790749932,-400.0,0.00029315,2]
[385354728,1757790749942,-400.0,0.00029315,2]
[385354729,1757790749951,-403.99123774,0.00029315,2]
[385354730,1757790749960,-400.0,0.00029315,2]
[385354731,1757790749969,-1081.81,0.00029315,2]
[385354732,1757790749979,-898.38,0.00029315,2]
[385354733,1757790749988,-400.0,0.00029315,2]
[385354734,1757790749997,-744.46,0.00029315,2]
[385354735,1757790750007,-1406.57,0.00029315,2]
[385354736,1757790750017,-420.47,0.00029315,2]
[385354737,1757790750026,-2017.53,0.00029315,2]
[385354738,1757790750035,-1035.92,0.00029315,2]
[385354739,1757790750045,-400.0,0.00029315,2]
[385354740,1757790750054,-400.0,0.00029315,2]
[385354741,1757790750064,-752.16,0.00029315,2]
[385354742,1757790750073,-1791.52,0.00029315,2]
[385354743,1757790750082,-729.82,0.00029315,2]
[385354744,1757790750093,-843.08,0.00029315,2]
[385354745,1757790750103,-400.0,0.00029315,2]
[385354746,1757790750112,-400.0,0.00029315,2]
[385354747,1757790750122,-924.42,0.00029315,2]
[385354748,1757790750131,-715.39,0.00029315,2]
[385354749,1757790750140,-400.0,0.00029315,2]
[385354750,1757790750150,-400.0,0.00029315,2]
[385354751,1757790750160,-543.24,0.00029315,2]
[385354752,1757790750176,-905.52,0.00029315,2]
[385354753,1757790750186,-405.71,0.00029315,2]
[385354754,1757790750196,-1125.91,0.00029315,2]
[385354755,1757790750205,-838.71,0.00029315,2]
[385354756,1757790750215,-405.06,0.00029315,2]
[385354757,1757790750224,-400.0,0.00029315,2]
[385354758,1757790750233,-897.14,0.00029315,2]
[385354759,1757790750243,-1221.3,0.00029315,2]
[385354760,1757790750252,-778.35,0.00029315,2]
[385354761,1757790750262,-1550.32,0.00029315,2]
[385354762,1757790750271,-1097.98,0.00029315,2]
[385354763,1757790750281,-746.12,0.00029315,2]
[385354764,1757790750293,-519.54,0.00029315,2]
[385354765,1757790750302,-400.0,0.00029315,2]
[385354766,1757790750312,-400.0,0.00029315,2]
[385354767,1757790750321,-413.88289539,0.00029315,2]
[385354768,1757790750331,-812.08,0.00029315,2]
[385354769,1757790750340,-400.0,0.00029315,2]
[385354770,1757790750349,-1172.1,0.00029315,2]
[385354771,1757790750358,-1004.56,0.00029315,2]
[385354772,1757790750368,-406.12,0.00029315,2]
[385354773,1757790750378,-738.83,0.00029315,2]
[385354774,1757790750387,-400.0,0.00029315,2]
[385354775,1757790750397,-1445.07,0.00029315,2]
[385354776,1757790750406,-400.0,0.00029315,2]
[385354777,1757790750417,-400.0,0.00029315,2]
[385354778,1757790750427,-400.0,0.00029315,2]
[385354779,1757790750436,-681.1,0.00029315,2]
[385354780,1757790750446,-400.0,0.00029315,2]
[385354781,1757790750456,-400.0,0.00029315,2]
[385354782,1757790750465,-400.0,0.00029315,2]
[385354783,1757790750477,-636.43,0.00029315,2]
[385354784,1757790750487,-400.0,0.00029315,2]
[385354785,1757790750497,-1822.15,0.00029315,2]
[385354786,1757790750507,-375.58136022,0.00029315,2]
[385354787,1757790750516,-400.0,0.00029315,2]
[385354788,1757790750525,-417.32,0.00029315,2]
[385354789,1757790750535,-400.0,0.00029315,2]
[385354790,1757790750544,-1015.89,0.00029315,2]
[385354791,1757790750553,-983.53,0.00029315,2]
[385354792,1757790750563,-761.25,0.00029315,2]
[385354793,1757790750571,-722.69,0.00029315,2]
[385354794,1757790750581,-400.0,0.00029315,2]
[385354795,1757790750590,-411.62,0.00029315,2]
[385354796,1757790750599,-670.74,0.00029315,2]
[385354797,1757790750608,-400.0,0.00029315,2]
[385354798,1757790750618,-458.09,0.00029315,2]
[385354799,1757790750627,-589.72,0.00029315,2]
[385354800,1757790750635,-161.39900368,0.00029315,2]
[385354801,1757790750645,-400.0,0.00029315,2]
[385354802,1757790750953,-1393.14,0.00029315,2]
[385354803,1757790750966,-422.08,0.00029315,2]
[385354804,1757790750975,-400.0,0.00029315,2]
[385354805,1757790750985,-1286.51,0.00029315,2]
[385354806,1757790750995,-400.0,0.00029315,2]
[385354807,1757790751005,-400.0,0.00029315,2]
[385354808,1757790751014,-400.0,0.00029315,2]
[385354809,1757790751023,-1836.39,0.00029315,2]
[385354810,1757790751032,-400.0,0.00029315,2]
[385354811,1757790751041,-806.89,0.00029315,2]
[385354812,1757790751051,-3209.32,0.00029315,2]
[385354813,1757790751060,-2346.72,0.00029315,2]
[385354814,1757790751069,-1118.88,0.00029315,2]
[385354815,1757790751079,-862.09,0.00029315,2]
[385354816,1757790751088,-400.0,0.00029315,2]
[385354817,1757790751097,-400.0,0.00029315,2]
[385354818,1757790751107,-1033.98,0.00029315,2]
[385354819,1757790751115,-400.0,0.00029315,2]
[385354820,1757790751125,-400.0,0.00029315,2]
[385354821,1757790751135,-702.99,0.00029315,2]
[385354822,1757790751145,-429.19655633,0.00029315,2]
[385354823,1757790751156,-1450.08,0.00029315,2]
[385354824,1757790751167,-896.46,0.00029315,2]
[385354825,1757790751176,-524.85,0.00029315,2]
[385354826,1757790751189,-837.65,0.00029315,2]
[385354827,1757790751198,-941.17,0.00029315,2]
[385354828,1757790751210,-872.8,0.00029315,2]
[385354829,1757790751219,-727.17,0.00029315,2]
[385354830,1757790751229,-711.83,0.00029315,2]
[385354831,1757790751239,-765.36,0.00029315,2]
[385354832,1757790751249,-400.0,0.00029315,2]
[385354833,1757790751258,-1000.0,0.00029315,2]
[385354834,1757790751267,-2033.09,0.00029315,2]
[385354835,1757790751277,-778.2,0.00029315,2]
[385354836,1757790751286,-980.63,0.00029315,2]
[385354837,1757790751296,-538.72,0.00029315,2]
[385354838,1757790751306,-677.3,0.00029315,2]
[385354839,1757790751316,-1183.03,0.00029315,2]
[385354840,1757790751326,-599.03,0.00029315,2]
[385354841,1757790751336,-722.19,0.00029315,2]
[385354842,1757790751346,-1015.48,0.00029315,2]
[385354843,1757790751356,-965.24,0.00029315,2]
[385354844,1757790751366,-400.0,0.00029315,2]
[385354845,1757790751375,-407.97790895,0.00029315,2]
[385354846,1757790751386,-653.28,0.00029315,2]
[385354847,1757790751395,-974.74,0.00029315,2]
[385354848,1757790751405,-400.0,0.00029315,2]
[385354849,1757790751415,-400.0,0.00029315,2]
[385354850,1757790751424,-532.11,0.00029315,2]
[385354851,1757790751434,-545.67169088,0.00029315,2]
[385354852,1757790751443,-741.23,0.00029315,2]
[385354853,1757790751453,-775.6,0.00029315,2]
[385354854,1757790751462,-400.0,0.00029315,2]
[385354855,1757790751472,-400.0,0.00029315,2]
[385354856,1757790751486,-1047.99,0.00029315,2]
[385354857,1757790751496,-867.54,0.00029315,2]
[385354858,1757790751506,-400.0,0.00029315,2]
[385354859,1757790751515,-835.84,0.00029315,2]
[385354860,1757790751526,-603.59,0.00029315,2]
[385354861,1757790751535,-2266.8,0.00029315,2]
[385354862,1757790751545,-247.56844784,0.00029315,2]
[385354863,1757790751556,-1243.58,0.00029315,2]
[385354864,1757790751565,-526.24,0.00029315,2]
[385354865,1757790751574,-605.54,0.00029315,2]
[385354866,1757790751584,-502.15,0.00029315,2]
[385354867,1757790751593,-708.83,0.00029315,2]
[385354868,1757790751602,-462.88,0.00029315,2]
[385354869,1757790751611,-495.47,0.00029315,2]
[385354870,1757790751620,-858.84,0.00029315,2]
[385354871,1757790751630,-2089.21,0.00029315,2]
[385354872,1757790751640,-1484.39,0.00029315,2]
[385354873,1757790751649,-1139.82,0.00029315,2]
[385354874,1757790751659,-676.37,0.00029315,2]
[385354875,1757790751670,-920.38,0.00029315,2]
[385354876,1757790751679,-785.36,0.00029315,2]
[385354877,1757790751689,-400.0,0.00029315,2]
[385354878,1757790751699,-612.46,0.00029315,2]
[385354879,1757790751708,-1042.18,0.00029315,2]
[385354880,1757790751719,-400.0,0.00029315,2]
[385354881,1757790751730,-400.0,0.00029315,2]
[385354882,1757790751740,-400.0,0.00029315,2]
[385354883,1757790751750,-714.23,0.00029315,2]
[385354884,1757790751759,-857.85,0.00029315,2]
[385354885,1757790751768,-894.39,0.00029315,2]
[385354886,1757790751777,-647.42,0.00029315,2]
[385354887,1757790751787,-2338.03,0.00029315,2]
[385354888,1757790751798,-513.3,0.00029315,2]